[Event "56th Rubinstein Memorial A 2020"]
[Site "Polanica Zdroj"]
[Date "2020.08.23"]
[Round "9.16"]
[White "Majocha, Piotr"]
[Black "Goraj, Barbara"]
[Result "1/2-1/2"]
[ECO "A15"]
[WhiteElo "1906"]
[BlackElo "2099"]
[Annotator "NA"]
[PlyCount "80"]
[EventDate "2020.08.15"]
[EventType "swiss"]
[EventCountry "POL"]
[SourceTitle "playchess.com"]
[Source "ChessBase"]
[SourceQuality "1"]
[TimeControl "40/5400+30:1800+30"]

1. c4 {[%emt 0:00:00]} Nf6 {[%emt 0:01:19]} 2. Nf3 {[%emt 0:00:00]} g6 {[%emt 0:00:23]} 3. Nc3 {[%emt 0:00:13]} Bg7 {[%emt 0:00:32]} 4. d4 {[%emt 0:00:09]} O-O {[%emt 0:00:32]} 5. e4 {[%emt 0:00:36]} d6 {[%emt 0:00:09]} 6. h3 {[%emt 0:00:06]} e5 {[%emt 0:00:21]} 7. d5 {[%emt 0:00:41]} a5 {[%emt 0:00:35]} 8. g4 {[%emt 0:00:16]} Na6 {[%emt 0:00:54]} 9. Be3 {[%emt 0:00:16]} Nc5 {[%emt 0:00:29]} 10. Nd2 {[%emt 0:00:06]} c6 {[%emt 0:00:46]} 11. Be2 {[%emt 0:02:33]} a4 {[%emt 0:00:46] E92: King's Indian: Classical: 6 Be2 e5: 7 dxe5, 7 Be3 and Petrosian System without 7...Nbd7.} 12. b4 {[%emt 0:21:59]} axb3 $1 {[%emt 0:05:58]} 13. axb3 {[%emt 0:00:06]} Rxa1 {[%emt 0:08:03]} 14. Qxa1 {[%emt 0:00:04] [#]} Ne8 $146 {[%emt 0:00:19]} ({Predecessor:} 14... Na6 $11 15. Qa3 c5 16. Nf1 Kh8 17. Ng3 Ng8 18. g5 f5 19. exf5 gxf5 20. Bd2 Nb4 {1-0 (46) Parligras,M (2596)-Mazur,S (2427) Konya 2016}) 15. b4 {[%emt 0:19:34]} Nd7 {[%emt 0:05:38]} 16. Qb1 {[%emt 0:07:11]} ({White should play} 16. Qa5 $16 Qxa5 17. bxa5) 16... f5 {[%emt 0:06:01]} 17. gxf5 {[%emt 0:02:56]} gxf5 {[%emt 0:00:47]} 18. exf5 {[%emt 0:01:00]} e4 {[%emt 0:01:11]} ({Black should try} 18... Ndf6 $14) 19. Ndxe4 {[%emt 0:05:13]} (19. Ncxe4 $142 cxd5 20. cxd5) 19... Ne5 {[%emt 0:02:34]} 20. Ng3 {[%emt 0:08:44]} Nxc4 $14 {[%emt 0:05:27]} 21. Bxc4 {[%emt 0:00:13]} Bxc3+ {[%emt 0:00:07]} 22. Kf1 {[%emt 0:00:21]} Kh8 {[%emt 0:03:27]} 23. Qd3 {[%emt 0:05:22]} Be5 {[%emt 0:04:47]} 24. Rg1 {[%emt 0:08:36]} Qh4 {[%emt 0:02:35]} 25. f4 {[%emt 0:04:57]} Bg7 {[%emt 0:04:07]} 26. Kg2 {[%emt 0:02:39]} Nf6 {[%emt 0:02:39]} 27. dxc6 {[%emt 0:05:12]} bxc6 {[%emt 0:00:38]} 28. Be6 {[%emt 0:01:59]} Bb7 {[%emt 0:02:26]} 29. Qe2 {[%emt 0:01:49]} Bh6 {[%emt 0:03:40]} 30. Qf3 {[%emt 0:01:04]} Rb8 {[%emt 0:11:36]} 31. Kh2 {[%emt 0:00:40]} c5 {[%emt 0:01:24]} 32. Qd1 {[%emt 0:00:39]} Bc6 {[%emt 0:04:16]} 33. Ne2 {[%emt 0:00:26]} Qh5 {[%emt 0:06:16]} 34. Nc3 {[%emt 0:00:44]} Qxd1 {[%emt 0:10:33]} 35. Rxd1 {[%emt 0:00:04]} Bf8 {[%emt 0:01:38]} 36. bxc5 {[%emt 0:00:24]} dxc5 {[%emt 0:00:25]} 37. Rb1 {[%emt 0:00:55]} Rxb1 {[%emt 0:01:01]} 38. Nxb1 {[%emt 0:00:04]} Ne4 {[%emt 0:00:18]} 39. Nd2 {[%emt 0:00:20]} Nxd2 {[%emt 0:01:25]} 40. Bxd2 {[%emt 0:00:00]} Bg7 1/2-1/2

[Event "56th Rubinstein Memorial A 2020"]
[Site "Polanica Zdroj"]
[Date "2020.08.23"]
[Round "9.17"]
[White "Hetzer, Volkhard"]
[Black "Hasterok, Mateusz"]
[Result "1/2-1/2"]
[ECO "A80"]
[WhiteElo "1911"]
[BlackElo "2056"]
[Annotator "NA"]
[PlyCount "52"]
[EventDate "2020.08.15"]
[EventType "swiss"]
[EventCountry "POL"]
[SourceTitle "playchess.com"]
[Source "ChessBase"]
[SourceQuality "1"]
[TimeControl "40/5400+30:1800+30"]

1. d4 {[%emt 0:00:00]} f5 {[%emt 0:00:00]} 2. Bg5 {[%emt 0:00:00]} g6 {[%emt 0:00:00]} 3. Nc3 {[%emt 0:04:34]} d5 {[%emt 0:04:30]} 4. e3 {[%emt 0:02:21]} Bg7 {[%emt 0:02:17]} 5. Qd2 {[%emt 0:14:59]} Nf6 {[%emt 0:05:45]} 6. Nf3 {[%emt 0:07:57]} ({White should try} 6. h4 $14) 6... c6 {[%emt 0:06:09]} 7. Ne5 {[%emt 0:01:16]} Nbd7 {[%emt 0:03:20]} 8. f4 {[%emt 0:10:25]} Qc7 {[%emt 0:07:54]} 9. Be2 {[%emt 0:01:35]} b5 {[%emt 0:13:16]} 10. a3 {[%emt 0:07:07]} a5 {[%emt 0:05:45]} 11. O-O {[%emt 0:05:45]} O-O $11 {[%emt 0:05:52]} 12. Bf3 {[%emt 0:05:20]} Nxe5 {[%emt 0:05:55]} 13. dxe5 {[%emt 0:12:22]} Ne4 {[%emt 0:03:12]} 14. Bxe4 {[%emt 0:00:46]} dxe4 {[%emt 0:00:08]} 15. Nd5 {[%emt 0:00:36]} cxd5 {[%emt 0:04:20]} 16. Qxd5+ {[%emt 0:00:10]} Be6 {[%emt 0:00:45]} 17. Qxe6+ {[%emt 0:00:06]} Rf7 {[%emt 0:00:35]} 18. c3 {[%emt 0:05:07]} Qc5 {[%emt 0:01:50]} 19. Kf2 {[%emt 0:00:59]} h6 {[%emt 0:01:07]} 20. Bh4 {[%emt 0:01:49]} g5 {[%emt 0:00:22]} 21. Bg3 {[%emt 0:01:32]} Qc4 {[%emt 0:00:49]} 22. Qxc4 {[%emt 0:02:17]} bxc4 {[%emt 0:00:07]} 23. Rfd1 {[%emt 0:01:32]} e6 {[%emt 0:00:55]} 24. Rd2 {[%emt 0:05:06]} Bf8 {[%emt 0:03:21]} 25. Rad1 {[%emt 0:00:37]} Rb8 {[%emt 0:00:42]} 26. Rc2 {[%emt 0:00:17]} Rfb7 {[%emt 0:03:05]} 1/2-1/2

[Event "56th Rubinstein Memorial A 2020"]
[Site "Polanica Zdroj"]
[Date "2020.08.23"]
[Round "9.18"]
[White "Hertlein, Irena"]
[Black "Kasperek, Ryszard"]
[Result "0-1"]
[ECO "B06"]
[WhiteElo "1905"]
[BlackElo "2202"]
[Annotator "ChessBase"]
[PlyCount "64"]
[EventDate "2020.08.15"]
[EventType "swiss"]
[EventCountry "POL"]
[SourceTitle "playchess.com"]
[Source "ChessBase"]
[SourceQuality "1"]
[TimeControl "40/5400+30:1800+30"]

1. e4 {[%emt 0:00:00]} g6 {[%emt 0:01:02]} 2. d4 {[%emt 0:03:21]} Bg7 {[%emt 0:00:15]} 3. g3 {[%emt 0:01:14]} d5 {[%emt 0:02:33]} 4. e5 {[%emt 0:00:49]} c5 {[%emt 0:00:07]} 5. c3 {[%emt 0:00:26]} Nc6 {[%emt 0:00:05]} 6. Bg2 {[%emt 0:00:19]} Nh6 {[%emt 0:06:40]} 7. Ne2 {[%emt 0:08:56]} Bg4 {[%emt 0:20:39]} 8. f3 {[%emt 0:03:22]} Bf5 {[%emt 0:12:32]} 9. f4 {[%emt 0:04:45]} cxd4 {[%emt 0:05:45]} 10. Nxd4 {[%emt 0:00:34]} e6 {[%emt 0:07:03]} 11. O-O {[%emt 0:05:07]} Qb6 {[%emt 0:02:26]} 12. Qb3 {[%emt 0:09:23]} Nxd4 {[%emt 0:02:37]} 13. Qxb6 {[%emt 0:00:46]} axb6 {[%emt 0:01:19]} 14. cxd4 {[%emt 0:00:05]} Bxb1 {[%emt 0:02:31]} 15. Rxb1 {[%emt 0:00:01]} Nf5 {[%emt 0:00:04]} 16. Rd1 {[%emt 0:04:40]} Rxa2 {[%emt 0:00:40]} 17. g4 {[%emt 0:04:44]} Ne7 {[%emt 0:00:42]} 18. Bd2 {[%emt 0:01:18]} Kd7 {[%emt 0:01:38]} 19. Bb4 {[%emt 0:00:56]} Nc6 {[%emt 0:00:35]} 20. Ba3 {[%emt 0:01:36]} Bf8 {[%emt 0:04:39]} 21. Bf1 {[%emt 0:02:25]} h5 {[%emt 0:03:51]} 22. g5 {[%emt 0:03:57]} Bxa3 {[%emt 0:01:57]} 23. bxa3 {[%emt 0:00:00]} Kc7 {[%emt 0:00:09]} 24. Rb3 {[%emt 0:00:15]} Ra8 {[%emt 0:00:05]} 25. Rdd3 {[%emt 0:00:29]} Ra4 {[%emt 0:00:41]} 26. Rbc3 {[%emt 0:00:58]} Kb8 {[%emt 0:05:32]} 27. Rb3 {[%emt 0:02:07]} Nxd4 {[%emt 0:02:46]} 28. Rxb6 {[%emt 0:00:57]} R2xa3 {[%emt 0:00:26]} 29. Rd1 {[%emt 0:02:55]} Ra2 {[%emt 0:00:39]} 30. Bg2 {[%emt 0:01:43]} Ne2+ {[%emt 0:02:11]} 31. Kh1 {[%emt 0:00:05]} Ra1 {[%emt 0:01:37]} 32. Rdb1 {[%emt 0:00:37]} Rxb1+ 0-1

[Event "56th Rubinstein Memorial A 2020"]
[Site "Polanica Zdroj"]
[Date "2020.08.23"]
[Round "9.19"]
[White "Rogacewicz, Mikolaj"]
[Black "Stachecki, Mikolaj"]
[Result "1/2-1/2"]
[ECO "D12"]
[WhiteElo "1970"]
[BlackElo "1806"]
[Annotator "ChessBase"]
[PlyCount "126"]
[EventDate "2020.08.15"]
[EventType "swiss"]
[EventCountry "POL"]
[SourceTitle "playchess.com"]
[Source "ChessBase"]
[SourceQuality "1"]
[TimeControl "40/5400+30:1800+30"]

1. d4 {[%emt 0:00:00]} d5 {[%emt 0:00:00]} 2. c4 {[%emt 0:00:00]} c6 {[%emt 0:00:00]} 3. Nf3 {[%emt 0:00:00]} Nf6 {[%emt 0:00:00]} 4. e3 {[%emt 0:00:00]} Bf5 {[%emt 0:00:00]} 5. Nc3 {[%emt 0:00:00]} e6 {[%emt 0:00:00]} 6. Nh4 {[%emt 0:00:12]} Be4 {[%emt 0:00:07]} 7. f3 {[%emt 0:00:08]} Bg6 {[%emt 0:00:05]} 8. Qb3 {[%emt 0:00:15]} Qc7 {[%emt 0:00:07]} 9. Bd2 {[%emt 0:00:07]} Be7 {[%emt 0:00:09]} 10. Rc1 {[%emt 0:05:16]} Nbd7 {[%emt 0:00:36]} 11. g3 {[%emt 0:01:06]} dxc4 {[%emt 0:00:49]} 12. Bxc4 {[%emt 0:01:59]} a6 {[%emt 0:00:44]} 13. O-O {[%emt 0:08:53]} b5 {[%emt 0:06:18]} 14. Be2 {[%emt 0:00:29]} Qb6 {[%emt 0:00:15]} 15. Nxg6 {[%emt 0:03:52]} hxg6 {[%emt 0:00:06]} 16. f4 {[%emt 0:00:40]} c5 {[%emt 0:04:55]} 17. Bf3 {[%emt 0:02:36]} Rb8 {[%emt 0:13:53]} 18. Ne2 {[%emt 0:04:44]} O-O {[%emt 0:01:46]} 19. Kh1 {[%emt 0:03:10]} Rfc8 {[%emt 0:01:26]} 20. g4 {[%emt 0:04:13]} c4 {[%emt 0:03:15]} 21. Qd1 {[%emt 0:01:03]} b4 {[%emt 0:11:25]} 22. Qe1 {[%emt 0:05:26]} Qa5 {[%emt 0:12:43]} 23. g5 {[%emt 0:09:11]} Nd5 {[%emt 0:05:19]} 24. a3 {[%emt 0:11:00]} c3 {[%emt 0:10:51]} 25. bxc3 {[%emt 0:00:22]} bxc3 {[%emt 0:00:06]} 26. Nxc3 {[%emt 0:06:25]} Nxc3 {[%emt 0:00:22]} 27. Bxc3 {[%emt 0:01:24]} Qxa3 {[%emt 0:00:17]} 28. Be4 {[%emt 0:07:32]} a5 {[%emt 0:04:47]} 29. Rf2 {[%emt 0:03:08]} Bb4 {[%emt 0:02:28]} 30. Rfc2 {[%emt 0:00:31]} Bxc3 {[%emt 0:01:20]} 31. Rxc3 {[%emt 0:00:09]} Rxc3 {[%emt 0:00:07]} 32. Rxc3 {[%emt 0:00:34]} Qb4 {[%emt 0:00:21]} 33. Kg2 {[%emt 0:03:43]} Nc5 {[%emt 0:02:42]} 34. dxc5 {[%emt 0:09:11]} Qxe4+ {[%emt 0:00:05]} 35. Kg3 {[%emt 0:01:30]} Rb2 {[%emt 0:01:41]} 36. Qf1 {[%emt 0:00:42]} Rb1 {[%emt 0:12:53]} 37. Qg2 {[%emt 0:03:31]} Qxg2+ {[%emt 0:02:54]} 38. Kxg2 {[%emt 0:00:09]} f5 {[%emt 0:00:26]} 39. gxf6 {[%emt 0:04:08]} gxf6 {[%emt 0:00:03]} 40. e4 {[%emt 0:00:00]} a4 {[%emt 0:00:00]} 41. c6 {[%emt 0:01:42]} Rb8 {[%emt 0:03:47]} 42. Kf3 {[%emt 0:02:23]} Rc8 {[%emt 0:00:55]} 43. e5 {[%emt 0:06:43]} Kf7 {[%emt 0:02:59]} 44. Kg4 {[%emt 0:01:25]} Ra8 {[%emt 0:07:45]} 45. Rd3 {[%emt 0:07:51]} Ra7 {[%emt 0:07:22]} 46. h4 {[%emt 0:02:48]} a3 {[%emt 0:00:41]} 47. c7 {[%emt 0:00:29]} Rxc7 {[%emt 0:00:07]} 48. Rxa3 {[%emt 0:00:05]} Rd7 {[%emt 0:01:49]} 49. Ra8 {[%emt 0:02:47]} Rc7 {[%emt 0:02:17]} 50. Rh8 {[%emt 0:02:47]} Kg7 {[%emt 0:00:06]} 51. Rd8 {[%emt 0:00:19]} Rb7 {[%emt 0:01:13]} 52. Kf3 {[%emt 0:04:20]} Rb3+ {[%emt 0:00:42]} 53. Ke4 {[%emt 0:00:50]} f5+ {[%emt 0:01:51]} 54. Kd4 {[%emt 0:00:17]} Rh3 {[%emt 0:00:35]} 55. Kc5 {[%emt 0:02:23]} Rxh4 {[%emt 0:00:27]} 56. Kd6 {[%emt 0:00:20]} Rxf4 {[%emt 0:01:40]} 57. Kxe6 {[%emt 0:00:59]} Ra4 {[%emt 0:01:06]} 58. Rd7+ {[%emt 0:00:52]} Kg8 {[%emt 0:01:03]} 59. Kf6 {[%emt 0:00:16]} f4 {[%emt 0:00:20]} 60. e6 {[%emt 0:01:34]} f3 {[%emt 0:03:01]} 61. Kxg6 {[%emt 0:01:27]} Rg4+ {[%emt 0:01:22]} 62. Kh5 {[%emt 0:00:23]} f2 {[%emt 0:00:20]} 63. Rf7 {[%emt 0:00:29]} Re4 {[%emt 0:00:26]} 1/2-1/2

[Event "56th Rubinstein Memorial A 2020"]
[Site "Polanica Zdroj"]
[Date "2020.08.23"]
[Round "9.20"]
[White "Turski, Bartlomiej"]
[Black "Bojczewski, Mateusz"]
[Result "0-1"]
[ECO "B13"]
[WhiteElo "1985"]
[BlackElo "1886"]
[Annotator "NA"]
[PlyCount "70"]
[EventDate "2020.08.15"]
[EventType "swiss"]
[EventCountry "POL"]
[SourceTitle "playchess.com"]
[Source "ChessBase"]
[SourceQuality "1"]
[TimeControl "40/5400+30:1800+30"]

{[%evp 10,42,33,25,32767,36,39,11,29,25,33,0,6,0,-6,-16,0,-1,133,14,15,0,25,21,24,18,54,43,29,38,33,49,32767,32767,24]} 1. e4 {[%emt 0:00:00]} c6 {[%emt 0:00:00]} 2. d4 {[%emt 0:00:00]} d5 {[%emt 0:00:00]} 3. exd5 {[%emt 0:00:00]} cxd5 {[%emt 0:00:00]} 4. Bd3 {[%emt 0:00:00]} Nc6 {[%emt 0:00:00]} 5. c3 {[%emt 0:00:00]} g6 {[%emt 0:00:05]} 6. h3 {[%emt 0:00:39]} Nh6 {[%emt 0:08:43] B13: Caro-Kann: Exchange Variation and Panov-Botvinnik Attack.} 7. Nf3 {[%emt 0:01:50]} Bf5 {[%emt 0:00:46]} 8. Be2 {[%emt 0:01:29]} Bg7 {[%emt 0:05:12]} 9. O-O {[%emt 0:00:33]} O-O {[%emt 0:01:34] [#]} 10. Be3 $146 {[%emt 0:16:11]} ({Predecessor:} 10. Bf4 Bxb1 11. Rxb1 Nf5 12. Bd3 e6 13. Re1 Nd6 14. Qe2 Rc8 15. Rbc1 Re8 16. h4 {½-½ (52) Longson,S (2123)-Head,L (2161) Solihull 2018}) 10... f6 {[%emt 0:01:27]} 11. Nbd2 {[%emt 0:04:52]} e5 {[%emt 0:01:36]} 12. dxe5 {[%emt 0:01:00]} fxe5 {[%emt 0:00:07]} 13. Nb3 {[%emt 0:00:57]} b6 {[%emt 0:19:36]} (13... Nf7 $11 {remains equal.}) 14. Qd2 {[%emt 0:06:08]} ({White should try} 14. Bb5 $16 Qd6 15. Bxc6 Qxc6 {[#]} 16. Nxe5 $1 {[%mdl 512]}) 14... Nf7 {[%emt 0:00:15]} 15. Rad1 {[%emt 0:01:26]} Be6 {[%emt 0:00:12]} 16. Ng5 {[%emt 0:09:17]} Nxg5 {[%emt 0:00:16]} 17. Bxg5 {[%emt 0:00:04]} Bf6 {[%emt 0:00:48]} 18. Bxf6 {[%emt 0:06:33]} Qxf6 {[%emt 0:00:24]} 19. Bb5 {[%emt 0:03:16]} Ne7 {[%emt 0:02:45]} 20. Rfe1 {[%emt 0:04:54]} g5 {[%emt 0:03:08]} 21. Qe3 {[%emt 0:04:33]} Ng6 $11 {[%emt 0:00:30]} 22. Nd4 {[%emt 0:30:02]} Bc8 {[%emt 0:01:34]} 23. Nf3 {[%emt 0:03:37]} e4 {[%emt 0:06:48]} 24. Nd4 {[%emt 0:01:22]} Ne5 {[%emt 0:01:52]} 25. Bf1 {[%emt 0:02:08]} g4 {[%emt 0:00:21]} 26. Qg3 {[%emt 0:00:31]} Kh8 {[%emt 0:01:05]} 27. h4 {[%emt 0:00:35]} Rg8 {[%emt 0:01:41]} 28. Kh1 {[%emt 0:00:50]} Rg6 {[%emt 0:01:27]} 29. Nb5 {[%emt 0:00:50]} Bb7 {[%emt 0:01:06]} 30. c4 {[%emt 0:00:16]} Rh6 {[%emt 0:03:38]} 31. Rxd5 {[%emt 0:00:03]} Bxd5 {[%emt 0:00:47]} 32. cxd5 {[%emt 0:00:01]} Rxh4+ {[%emt 0:00:24]} 33. Kg1 {[%emt 0:00:01]} Rg8 {[%emt 0:00:30]} 34. d6 {[%emt 0:00:08]} Nf3+ {[%emt 0:00:39]} 35. gxf3 {[%emt 0:00:06]} gxf3 {[%emt 0:00:06]} 0-1